bitfinex-derivatives/quotes_ETHF0:USTF0_20230401
["timestamp","ask_amount","ask_price","bid_price","bid_amount"]
[1680312849401,0.002,1827.4,1827.2,1.0]
[1680312849607,0.002,1827.4,1827.1,8.94499029]
[1680312849807,0.002,1827.4,1827.2,1.0]
[1680312850200,0.002,1827.4,1827.1,8.94499029]
[1680312850402,0.002,1827.4,1827.2,1.0]
[1680312851002,0.002,1827.4,1827.1,8.94499029]
[1680312851202,0.002,1827.4,1827.2,1.0]
[1680312851607,0.002,1827.4,1827.1,8.94499029]
[1680312851807,0.002,1827.4,1827.2,1.0]
[1680312853505,0.002,1827.4,1827.1,8.94499029]
[1680312853808,0.002,1827.4,1827.2,1.0]
[1680312854716,0.002,1827.4,1827.1,8.94499029]
[1680312854914,0.002,1827.4,1827.2,1.0]
[1680312855604,0.002,1827.4,1827.1,8.94499029]
[1680312855805,0.002,1827.4,1827.2,1.0]
[1680312856005,0.002,1827.4,1827.2,1.16317582]
[1680312859613,0.002,1827.4,1827.3,6.82682418]
[1680312863410,3.74526991,1827.6,1827.4,0.002]
[1680312863411,0.53746991,1827.6,1827.4,0.002]
[1680312863607,0.57093798,1827.8,1827.4,0.002]
[1680312863811,0.57093798,1827.8,1827.5,6.11293359]
[1680312864020,0.57093798,1827.8,1827.6,1.0]
[1680312864506,0.57093798,1827.9,1827.6,1.0]
[1680312864702,0.57093798,1827.9,1827.7,9.41756853]
[1680312864905,0.57093798,1827.9,1827.8,1.0]
[1680312865310,0.57093798,1827.9,1827.8,6.94214567]
[1680312866412,0.1,1828.0,1827.8,6.94214567]
[1680312866617,0.1,1828.0,1827.9,3.2078]
[1680312867006,0.1,1828.0,1827.9,9.44629075]
[1680312870517,0.1,1828.0,1827.9,6.23849075]
[1680312870923,0.1,1828.0,1827.9,0.23597795]
[1680312871418,0.1,1828.0,1827.9,6.06926542]
[1680312872316,0.1,1828.0,1827.9,9.27706542]
[1680312874621,0.1,1828.0,1827.9,9.25018638]
[1680312877724,0.1,1828.0,1827.9,10.25018638]
[1680312880712,0.1,1828.0,1827.9,9.25018638]
[1680312892021,0.1,1828.0,1827.9,10.25018638]
[1680312898025,0.1,1828.0,1827.9,15.72818638]
[1680312900328,0.1,1828.0,1827.9,9.25018638]
[1680312906131,0.67093798,1828.0,1827.9,9.25018638]
[1680312908339,1.52679893,1828.0,1827.9,9.25018638]
[1680312908539,0.95586095,1828.0,1827.9,9.25018638]
[1680312909136,0.95586095,1828.0,1827.9,10.25018638]
[1680312909328,0.95586095,1828.0,1827.9,9.25018638]
[1680312910134,0.95586095,1828.0,1827.9,10.25018638]
[1680312910338,0.95586095,1828.0,1827.9,10.82105793]
[1680312913632,0.95586095,1828.0,1827.9,9.82105793]
[1680312914440,1.24691217,1828.0,1827.9,9.82105793]
[1680312915638,0.1,1828.0,1827.9,9.82105793]
[1680312915841,1.24691217,1828.0,1827.9,9.82105793]
[1680312916343,0.96073245,1828.0,1827.9,10.67660859]
[1680312916540,0.96073245,1828.0,1827.9,10.10697818]
[1680312923950,0.96073245,1828.0,1827.9,1.07922708]
[1680312924151,0.96088013,1828.0,1827.9,1.07922708]
[1680312924444,0.96088013,1828.0,1827.9,4.28702708]
[1680312927149,0.1,1828.0,1827.9,4.28702708]
[1680312927544,1.24691217,1828.0,1827.9,4.85685767]
[1680312927950,1.24691217,1828.0,1827.9,4.00006587]
[1680312928152,1.24691217,1828.0,1827.9,4.85685767]
[1680312928354,1.24691217,1828.0,1827.9,4.00006587]
[1680312928648,1.24691217,1828.0,1827.9,4.85685767]
[1680312928852,1.24691217,1828.0,1827.9,0.79226587]
[1680312930958,15.34088419,1828.0,1827.9,0.11964944]
[1680312932255,13.90724616,1828.0,1827.9,0.11964944]
[1680312932862,15.34199028,1828.0,1827.9,0.11964944]
[1680312933061,15.34199028,1828.0,1827.6,0.8567918]
[1680312933265,0.86084694,1827.7,1827.6,0.8567918]
[1680312933655,0.86084694,1827.7,1827.6,1.14553483]
[1680312933656,0.57388236,1827.7,1827.6,1.14553483]
[1680312934462,1.4347293,1827.7,1827.6,0.85494907]
[1680312934762,1.86084694,1827.7,1827.5,4.06274907]
[1680312934957,1.57376467,1827.6,1827.5,0.85494907]
[1680312935561,2.43461161,1827.6,1827.5,0.85494907]
[1680312936469,1.57376467,1827.6,1827.5,0.85494907]
[1680312937964,1.57376467,1827.6,1827.4,0.85494907]
[1680312938154,2.43461161,1827.6,1827.4,0.85494907]
[1680312938355,2.43461161,1827.6,1827.5,0.0934001]
[1680312938559,1.86084694,1827.6,1827.5,0.0934001]
[1680312939169,1.86084694,1827.6,1827.3,4.06274907]
[1680312939467,0.57327249,1827.5,1827.3,4.06274907]
[1680312939765,1.0,1827.4,1827.3,4.06274907]
[1680312940566,2.43411943,1827.6,1827.3,4.06274907]
[1680312941068,0.57327249,1827.5,1827.3,4.06274907]
[1680312942170,2.43411943,1827.6,1827.3,4.06274907]
[1680312942468,1.57327249,1827.6,1827.3,3.2078]
[1680312944874,1.57327249,1827.6,1827.4,0.08066236]
[1680312945067,1.57327249,1827.6,1827.3,3.2078]
[1680312949274,0.57327249,1827.6,1827.3,3.2078]
[1680312952570,0.57327249,1827.6,1827.4,6.15661508]
[1680312953771,1.43411943,1827.7,1827.4,6.15661508]
[1680312954074,0.57327249,1827.7,1827.5,3.2078]
[1680312954265,0.57327249,1827.7,1827.5,4.2078]
[1680312954470,0.57327249,1827.7,1827.5,3.2078]
[1680312955670,0.57327249,1827.7,1827.6,5.95097461]
[1680312956570,0.57527249,1827.9,1827.6,6.95097461]
[1680312956771,0.57527249,1827.9,1827.7,3.2078]
[1680312957079,0.002,1827.9,1827.8,1.0]
[1680312957271,0.002,1827.9,1827.8,6.74626089]
[1680312957471,0.57527249,1827.9,1827.8,6.74626089]
[1680312957782,0.57527249,1827.9,1827.8,5.74626089]
[1680312959782,0.57527249,1827.9,1827.8,5.8270182]
[1680312964485,1.43611943,1827.9,1827.8,5.8270182]
[1680312964682,0.57527249,1827.9,1827.8,5.8270182]
[1680312965493,1.43611943,1827.9,1827.8,5.8270182]
[1680312966182,0.57527249,1827.9,1827.8,5.8270182]
[1680312967191,1.43611943,1827.9,1827.8,5.8270182]
[1680312968997,0.57527249,1827.9,1827.8,5.8270182]
[1680312969598,0.86284694,1827.9,1827.8,5.8270182]
[1680312976099,0.86284694,1827.9,1827.8,0.08075731]
[1680312976401,1.0,1827.8,1827.4,0.85494907]
[1680312976604,0.57320495,1827.6,1827.5,0.05097939]
[1680312976903,1.57320495,1827.6,1827.5,0.05097939]
[1680312977902,1.85980743,1827.6,1827.5,0.05097939]
[1680312978105,1.85980743,1827.6,1827.3,4.06274907]
[1680312978314,0.57335036,1827.5,1827.3,4.06274907]
[1680312980195,0.57335036,1827.5,1827.3,3.2078]
[1680312980196,1.43315779,1827.5,1827.3,3.2078]
[1680312980400,0.57335036,1827.4,1827.3,3.2078]
[1680312980607,1.57335036,1827.4,1827.3,3.2078]
[1680312982603,1.57335036,1827.4,1827.2,0.85494907]
[1680312982806,4.41551099,1827.3,1826.8,0.85494907]
[1680312983011,4.41551099,1827.3,1826.7,1.14553483]
[1680312983012,3.2078,1826.9,1826.7,0.85494907]
[1680312983210,3.2078,1826.9,1826.8,0.85494907]
[1680312983504,3.2078,1826.9,1826.7,0.85494907]
[1680312983910,1.13995024,1826.8,1826.7,0.85494907]
[1680312984302,1.13995024,1826.8,1826.6,0.85494907]
[1680312986909,1.13995024,1826.8,1826.5,0.85494907]
[1680312987810,3.2078,1826.7,1826.5,0.85494907]
[1680312988005,1.0,1826.6,1826.5,0.85494907]
[1680312988403,3.2078,1826.7,1826.5,0.85494907]
[1680312988707,3.2078,1826.7,1826.4,0.85494907]
[1680312989502,3.2078,1826.7,1826.5,6.25643596]
[1680312989907,0.15588424,1826.6,1826.5,6.25643596]
[1680312990117,3.2078,1826.7,1826.5,6.25643596]
[1680312998613,4.76192762,1826.9,1826.5,6.25643596]
[1680312998918,3.2078,1826.7,1826.5,6.25643596]
[1680313004823,0.15587122,1826.6,1826.5,6.25643596]
[1680313005122,3.2078,1826.7,1826.5,6.25643596]
[1680313014825,3.2078,1826.7,1826.2,0.85494907]
[1680313015126,1.0,1826.6,1826.2,0.85494907]
[1680313015629,1.0,1826.6,1826.3,6.07836964]
[1680313015827,3.2078,1826.7,1826.3,6.07836964]
[1680313019727,3.2078,1826.7,1826.3,6.93331871]
[1680313020025,0.15585831,1826.6,1826.3,6.93331871]
[1680313020225,1.15585831,1826.6,1826.3,6.93331871]
[1680313020631,0.15585831,1826.6,1826.3,6.07836964]
[1680313020827,3.2078,1826.7,1826.3,6.07836964]
[1680313021128,3.2078,1826.7,1826.2,7.55170896]
[1680313021731,3.2078,1826.7,1826.3,0.85494907]
[1680313022122,3.2078,1826.7,1826.2,7.55170896]
[1680313023727,3.7811668,1826.7,1826.3,0.85494907]
[1680313024829,1.0,1826.6,1826.3,0.85494907]
[1680313025528,3.7811668,1826.7,1826.3,0.85494907]
[1680313025840,4.641217,1826.7,1826.4,0.85494907]
[1680313026733,3.7811668,1826.7,1826.4,0.85494907]
[1680313027737,3.7811668,1826.7,1826.5,0.85494907]
[1680313027738,1.5733668,1826.6,1826.5,0.85494907]
[1680313027934,0.5733668,1826.6,1826.5,0.85494907]
[1680313028438,0.5733668,1826.6,1826.4,0.85494907]
[1680313028439,1.8600502,1826.6,1826.4,0.85494907]
[1680313028634,4.78174689,1826.5,1826.4,0.85494907]
[1680313029034,3.78174689,1826.5,1826.4,0.85494907]
[1680313029235,3.2078,1826.5,1826.4,0.85494907]
[1680313030139,3.78174689,1826.5,1826.4,0.85494907]
[1680313033343,3.2078,1826.5,1826.4,0.85494907]
[1680313034135,3.78174689,1826.5,1826.4,0.85494907]
[1680313034535,3.2078,1826.5,1826.4,0.85494907]
[1680313034944,3.36364545,1826.5,1826.4,0.85494907]
[1680313038436,3.93759234,1826.5,1826.3,0.85494907]
[1680313038640,1.57394689,1826.4,1826.3,0.85494907]
[1680313039438,1.0,1826.4,1826.3,0.85494907]
[1680313047750,1.0,1826.4,1826.2,0.85494907]
[1680313047953,3.2078,1826.3,1826.2,0.85494907]
[1680313050055,3.36363283,1826.3,1826.2,0.85494907]
[1680313053858,3.36363283,1826.3,1826.1,1.14553483]
[1680313054053,3.36363283,1826.3,1826.2,0.85564054]
[1680313054254,3.36363283,1826.3,1826.1,1.14553483]
[1680313054450,3.36363283,1826.3,1826.2,0.8556768]
[1680313054764,3.36095182,1826.3,1826.2,0.8556768]
[1680313061367,0.15583283,1826.3,1826.2,2.00121163]
[1680313061665,0.57394689,1826.5,1826.2,0.57573439]
[1680313061860,0.57394689,1826.5,1826.4,0.85593921]
[1680313062065,3.78174689,1826.5,1826.4,0.85593921]
[1680313062461,0.57394689,1826.5,1826.4,0.85593921]
[1680313062767,3.78174689,1826.5,1826.4,0.85593921]
[1680313063161,3.78174689,1826.5,1826.4,1.4266952]
[1680313063464,3.78174689,1826.5,1826.4,0.85593921]
[1680313064769,4.64179709,1826.5,1826.4,0.85593921]
[1680313064961,4.79761739,1826.5,1826.4,0.85593921]
[1680313066058,3.93756719,1826.5,1826.4,0.85593921]
[1680313067267,4.79761739,1826.5,1826.4,0.85593921]
[1680313068176,3.93756719,1826.5,1826.4,0.85593921]
[1680313069280,4.79761739,1826.5,1826.4,0.85593921]
[1680313070370,4.2236705,1826.5,1826.4,0.85593921]
[1680313070576,4.79778933,1826.5,1826.4,0.85593921]
[1680313070776,3.93773913,1826.5,1826.4,0.85593921]
[1680313070972,4.79778933,1826.5,1826.4,0.85593921]
[1680313071274,4.2236705,1826.5,1826.4,0.85593921]
[1680313071479,4.79782419,1826.5,1826.4,0.85593921]
[1680313072273,3.93777399,1826.5,1826.4,0.85593921]
[1680313073480,4.2236705,1826.5,1826.4,0.85656281]
[1680313075779,4.79788518,1826.5,1826.4,0.85656281]
[1680313075978,4.2236705,1826.5,1826.4,0.85656281]
[1680313077273,5.2236705,1826.5,1826.4,0.85656281]
[1680313077470,9.8416203,1826.5,1826.4,0.57114376]
[1680313077681,10.9883539,1826.5,1826.4,0.57114376]
[1680313079881,11.03247173,1826.5,1826.4,0.55859764]
[1680313080179,11.03247173,1826.5,1826.4,0.54605076]
[1680313083978,11.03247173,1826.5,1826.4,0.53409523]
[1680313084175,10.42612477,1826.5,1826.3,0.85656281]
[1680313084381,2.14876474,1826.4,1826.3,0.85656281]
[1680313084583,1.0,1826.4,1826.2,0.85656281]
[1680313084778,4.06928085,1826.3,1826.2,0.85656281]
[1680313084978,5.06928085,1826.3,1826.2,0.85656281]
[1680313086585,5.64354226,1826.3,1826.2,0.85656281]
[1680313086785,5.06928085,1826.3,1826.2,0.85656281]
[1680313087385,5.64352992,1826.3,1826.2,0.85656281]
[1680313087686,2.05525686,1826.3,1826.2,0.85656281]
[1680313087891,5.26305686,1826.3,1826.2,0.85656281]
[1680313089477,4.26305686,1826.3,1826.2,0.85656281]
[1680313090687,4.26305686,1826.3,1826.1,0.85656281]
[1680313090979,1.57412604,1826.2,1826.1,0.85656281]
[1680313091177,1.57412604,1826.2,1826.1,0.85667331]
[1680313091380,1.57412604,1826.2,1826.0,1.14125228]
[1680313091587,1.57412604,1826.2,1826.0,1.7163474]
[1680313091882,1.57412604,1826.2,1826.1,0.8566984]
[1680313092285,0.57412604,1826.2,1826.1,0.8566984]
[1680313092484,1.57412604,1826.2,1826.1,0.8566984]
[1680313094181,0.57412604,1826.2,1826.1,0.8566984]
[1680313094377,1.57412604,1826.2,1826.1,0.8566984]
[1680313094786,0.57412604,1826.2,1826.1,0.8566984]
[1680313094981,0.76789722,1826.2,1826.1,0.8566984]
[1680313095783,1.76789722,1826.2,1826.1,0.8566984]
[1680313096491,0.76789722,1826.2,1826.0,0.8566984]
[1680313096697,3.2078,1826.1,1826.0,0.8566984]
[1680313099992,4.78192604,1826.1,1825.9,0.8566984]
[1680313100392,4.78192604,1826.1,1826.0,0.8566984]
[1680313100587,4.2078,1826.1,1826.0,0.8566984]
[1680313101285,3.2078,1826.1,1826.0,0.8566984]
[1680313104492,3.2078,1826.1,1825.9,0.8566984]
[1680313107501,0.19377118,1826.2,1826.0,1.8566984]
[1680313107798,0.19377118,1826.2,1826.1,1.0]
[1680313108005,0.19377118,1826.2,1826.1,1.8566984]
[1680313109196,0.19377118,1826.2,1826.1,8.00446121]
[1680313110803,0.57412604,1826.3,1826.1,8.00446121]
[1680313111003,0.19376056,1826.2,1826.1,8.00446121]
[1680313112905,4.64540689,1826.4,1826.1,8.00446121]
[1680313113308,0.57412604,1826.3,1826.1,8.00446121]
[1680313116212,3.78392604,1826.4,1826.2,0.8566984]
[1680313116409,3.78392604,1826.4,1826.3,1.0]
[1680313116602,0.57612604,1826.4,1826.3,7.03352666]
[1680313117203,0.86348085,1826.4,1826.3,6.03352666]
[1680313119515,4.07128085,1826.4,1826.3,6.03352666]
[1680313124417,0.86348085,1826.4,1826.3,6.89022506]
[1680313125015,1.05723226,1826.4,1826.3,6.89022506]
[1680313125220,1.05723226,1826.4,1826.3,6.03352666]
[1680313126213,4.26503226,1826.4,1826.3,6.03352666]
[1680313128816,4.26503226,1826.4,1826.3,6.89022506]
[1680313129315,0.76983696,1826.4,1826.3,6.89022506]
[1680313138524,0.76983696,1826.4,1826.3,0.8566984]
[1680313141330,0.76983696,1826.4,1826.2,0.8566984]
[1680313144430,0.76783696,1826.4,1826.2,0.8566984]
[1680313144832,0.76783696,1826.4,1826.3,0.8566984]
[1680313145427,0.76983696,1826.4,1826.3,0.8566984]
[1680313151538,1.63131781,1826.4,1826.3,0.8566984]
[1680313152141,0.76983696,1826.4,1826.3,0.8566984]
[1680313152630,1.05723226,1826.4,1826.3,0.85690168]
[1680313153431,4.55231615,1826.4,1826.2,0.50690168]
[1680313153630,0.86149829,1826.3,1826.2,0.49677913]
[1680313153937,2.0539658,1826.3,1826.2,0.49677913]
[1680313155736,2.34123225,1826.3,1826.2,0.49677913]
[1680313155937,8.78434877,1826.3,1825.8,1.14125228]
[1680313156236,0.57441224,1825.9,1825.8,1.14125228]
[1680313156431,0.57441224,1825.9,1825.8,1.70796266]
[1680313156432,1.78496069,1825.9,1825.8,1.70796266]
[1680313156628,0.78496069,1825.9,1825.8,1.70796266]
[1680313157545,0.21054845,1825.9,1825.8,1.14125228]
[1680313160149,0.21054845,1825.9,1825.7,2.68066625]
[1680313161038,0.21054845,1825.9,1825.8,5.72178499]
[1680313161236,0.21054845,1825.9,1825.8,6.72178499]
[1680313161549,1.43603061,1826.1,1825.8,6.72178499]
[1680313161942,0.57441224,1826.1,1825.9,1.0]
[1680313162339,1.43603061,1826.1,1825.9,1.0]
[1680313162536,0.57441224,1826.1,1825.9,1.0]
[1680313162746,0.57441224,1826.0,1825.9,1.0]
[1680313163140,0.57441224,1826.0,1825.8,6.72178499]
[1680313163337,1.43603061,1826.1,1825.8,5.72178499]
[1680313163541,0.57441224,1826.0,1825.8,5.72178499]
[1680313164046,3.78221224,1826.0,1825.8,5.72178499]
[1680313164245,3.2078,1826.0,1825.8,5.72178499]
[1680313165349,3.78221224,1826.0,1825.8,5.72178499]
[1680313165950,3.2078,1826.0,1825.8,5.72178499]
[1680313169651,0.2105409,1825.9,1825.8,5.72178499]
[1680313169948,1.2105409,1825.9,1825.8,5.72178499]
[1680313170153,0.2105409,1825.9,1825.8,5.72178499]
[1680313199177,0.78495314,1825.9,1825.8,5.72178499]
[1680313200972,1.07215927,1825.9,1825.8,6.86303727]
[1680313205279,1.07215927,1825.9,1825.8,1.14125228]
[1680313207380,2.35936539,1825.9,1825.7,1.14125228]
[1680313207689,5.07000556,1825.8,1825.7,1.14125228]
[1680313207881,5.27954213,1825.8,1825.7,1.14125228]
[1680313211388,4.27954213,1825.8,1825.7,1.14125228]
[1680313211877,4.27954213,1825.8,1825.6,1.14125228]
[1680313212081,0.57459287,1825.7,1825.5,2.97563307]
[1680313212282,1.57459287,1825.7,1825.6,0.56715138]
[1680313212587,0.57459287,1825.7,1825.6,0.56715138]
[1680313214084,0.57459287,1825.7,1825.6,1.14383425]
[1680313214290,0.57459287,1825.7,1825.6,1.71098563]
[1680313218983,4.64459843,1825.8,1825.6,1.71098563]
[1680313222090,4.64459843,1825.8,1825.7,0.85817891]
[1680313222687,4.64459843,1825.8,1825.6,1.71098563]
[1680313223387,1.19881778,1825.7,1825.6,1.71098563]
[1680313223588,0.19881778,1825.7,1825.6,1.71098563]
[1680313223794,0.19881778,1825.7,1825.6,1.71133626]
[1680313225385,0.19679241,1825.7,1825.6,1.71133626]
[1680313226798,0.77138528,1825.7,1825.6,1.71133626]
[1680313226994,0.19679241,1825.7,1825.6,1.71133626]
[1680313227392,0.77138528,1825.7,1825.6,1.14418488]
[1680313238199,0.77138528,1825.7,1825.6,1.71151199]
[1680313238705,0.77138528,1825.7,1825.6,1.14418488]
[1680313238900,0.77138528,1825.7,1825.6,1.71151199]
[1680313239204,0.77138528,1825.7,1825.6,1.14418488]
[1680313239398,0.77138528,1825.7,1825.6,1.71151199]
[1680313243297,0.77138528,1825.7,1825.6,1.7055204]
[1680313249913,0.77138528,1825.7,1825.6,0.56732711]
[1680313251210,0.77138528,1825.7,1825.5,1.9999298]
[1680313251411,0.77138528,1825.7,1825.6,0.56732711]
[1680313251613,0.77138528,1825.7,1825.6,1.56732711]
[1680313251910,0.77138528,1825.7,1825.6,0.56732711]
[1680313252213,1.63359084,1825.7,1825.6,0.56732711]
[1680313253116,0.77138528,1825.7,1825.6,0.56732711]
[1680313253414,1.63359084,1825.7,1825.6,0.56732711]
[1680313253615,1.05899797,1825.7,1825.6,0.56732711]
[1680313255719,1.05899797,1825.7,1825.5,1.9999298]
[1680313255919,1.05899797,1825.7,1825.6,0.56732711]
[1680313256315,1.05899797,1825.7,1825.5,1.9999298]
[1680313256523,1.05899797,1825.7,1825.6,0.56732711]
[1680313256822,1.05899797,1825.7,1825.5,1.9999298]
[1680313257013,0.57481675,1825.6,1825.5,1.9999298]
[1680313257522,0.80900556,1825.6,1825.5,8.18112235]
[1680313258019,4.01680556,1825.6,1825.5,8.18112235]
[1680313259019,4.01680556,1825.6,1825.5,6.74851966]
[1680313261724,4.01680556,1825.6,1825.5,8.18112235]
[1680313262121,4.01680556,1825.6,1825.5,6.74851966]
[1680313262424,4.01680556,1825.6,1825.5,8.18112235]
[1680313264134,0.80900556,1825.6,1825.5,8.18112235]
[1680313266227,0.80900556,1825.6,1825.5,1.9999298]
[1680313268430,0.80900556,1825.6,1825.5,0.56732711]
[1680313269727,4.01680556,1825.6,1825.5,0.56732711]
[1680313271026,0.80900556,1825.6,1825.5,0.56732711]
[1680313271329,0.23418881,1825.6,1825.5,1.9999298]
[1680313271529,0.57481675,1825.7,1825.5,8.33654666]
[1680313271731,0.57481675,1825.7,1825.3,7.48991258]
[1680313271924,0.17609677,1825.6,1825.3,7.48991258]
[1680313272126,0.17609677,1825.6,1825.5,0.32579367]
[1680313272329,0.57481675,1825.7,1825.4,5.41094533]
[1680313272532,0.57481675,1825.7,1825.5,1.0]
[1680313272928,0.57481675,1825.7,1825.6,5.88643855]
[1680313275637,0.57481675,1825.7,1825.6,6.88643855]
[1680313278434,0.57481675,1825.8,1825.7,1.0]
[1680313278633,0.57481675,1825.8,1825.7,2.1446509]
[1680313279633,0.57481675,1825.8,1825.7,1.1446509]
[1680313280537,1.43702231,1825.8,1825.7,1.1446509]
[1680313282940,0.57481675,1825.8,1825.7,1.1446509]
[1680313283333,0.75022508,1825.8,1825.7,1.1446509]
[1680313292648,1.61243064,1825.8,1825.6,1.1446509]
[1680313292849,0.75022508,1825.8,1825.6,1.6603257]
[1680313293242,1.61243064,1825.8,1825.6,1.6603257]
[1680313293444,0.75022508,1825.8,1825.7,5.83892852]
[1680313295548,0.75022508,1825.8,1825.7,6.98357942]
[1680313295747,0.75022508,1825.8,1825.7,5.83892852]
[1680313297548,0.75022508,1825.8,1825.7,6.98357942]
[1680313298349,0.75022508,1825.8,1825.7,5.83892852]
[1680313298750,0.75022508,1825.8,1825.6,1.1446509]
[1680313298950,0.75022508,1825.8,1825.6,1.66035834]
[1680313299651,1.61243064,1825.8,1825.7,0.85839467]
[1680313299843,4.24541389,1825.8,1825.7,0.85840402]
[1680313300353,0.74983291,1825.8,1825.7,1.1446509]
[1680313300853,0.74983291,1825.8,1825.6,1.1446509]
[1680313301054,1.61203847,1825.8,1825.6,1.1446509]
[1680313301255,0.74983291,1825.8,1825.6,1.1446509]
[1680313302445,1.61203847,1825.8,1825.6,1.1446509]
[1680313302651,0.57442458,1825.7,1825.6,1.1446509]
[1680313302851,0.74489189,1825.7,1825.6,1.1446509]
[1680313303656,0.17046731,1825.7,1825.6,1.1446509]
[1680313304252,0.74489189,1825.7,1825.6,1.1446509]
[1680313304760,0.17046731,1825.7,1825.6,1.1446509]
[1680313305054,0.74489189,1825.7,1825.6,1.1446509]
[1680313306763,0.17046731,1825.7,1825.5,1.9462474]
[1680313306960,0.17046731,1825.7,1825.6,0.51572993]
[1680313307266,0.17046731,1825.7,1825.6,2.43051747]
[1680313307561,0.17046731,1825.7,1825.6,2.9462474]
[1680313312772,0.17046731,1825.7,1825.6,8.97456027]
[1680313316270,0.17046731,1825.7,1825.6,7.5440428]
[1680313317070,0.17046731,1825.7,1825.6,8.9753876]
[1680313319869,1e-08,1825.9,1825.7,1.0]
[1680313320076,2.40891057,1826.2,1825.8,3.2078]
[1680313320272,0.86220556,1826.1,1826.0,1.14451368]
[1680313320473,0.86220556,1826.3,1826.0,1.67206398]
[1680313320674,0.86220556,1826.3,1826.2,0.85767686]
[1680313323481,0.86220556,1826.3,1826.2,1.42943696]
[1680313324776,0.86220556,1826.3,1826.2,0.5717601]
[1680313326170,4.07000556,1826.4,1826.2,0.5717601]
[1680313326677,1.0,1826.3,1826.2,0.5717601]
[1680313327974,1.0,1826.3,1826.1,1.42943696]
[1680313328275,1.0,1826.3,1826.1,0.5717601]
[1680313329577,5.07000556,1826.4,1826.1,0.5717601]
[1680313329777,1.0,1826.3,1826.1,0.5717601]
[1680313330977,5.07000556,1826.4,1826.1,0.5717601]
[1680313332981,1.0,1826.3,1826.1,0.5717601]
[1680313334785,5.07000556,1826.4,1826.1,0.5717601]
[1680313335482,4.2078,1826.4,1826.1,0.5717601]
[1680313338386,1.0,1826.3,1826.1,0.5717601]
[1680313340288,4.2078,1826.4,1826.1,0.5717601]
[1680313350395,5.07000556,1826.4,1826.1,0.5717601]
[1680313358307,0.86220556,1826.3,1826.2,0.5717601]
[1680313358610,0.86220556,1826.3,1826.1,1.42943696]
[1680313358804,0.86220556,1826.3,1826.2,0.5717601]
[1680313359515,4.07000556,1826.4,1826.2,0.5717601]
[1680313359715,0.86220556,1826.4,1826.3,0.5717601]
[1680313359911,1.39648565,1826.5,1826.3,0.5717601]
[1680313360213,0.86220556,1826.5,1826.3,0.5717601]
[1680313360408,0.86220556,1826.4,1826.3,0.5717601]
[1680313360712,0.86220556,1826.5,1826.3,0.5717601]
[1680313362303,0.86220556,1826.4,1826.3,1.42943696]
[1680313362507,0.86220556,1826.4,1826.3,0.85767686]
[1680313362703,0.86220556,1826.4,1826.3,1.42927045]
[1680313364413,0.86220556,1826.4,1826.3,0.85767686]
[1680313381122,4.07000556,1826.4,1826.3,0.85767686]
[1680313381528,4.35662449,1826.4,1826.3,0.57192241]
[1680313384529,5.35662449,1826.4,1826.3,0.57192241]
[1680313387327,1.0,1826.4,1826.3,0.57192241]
[1680313388129,5.35662449,1826.4,1826.3,0.57192241]
[1680313388332,4.2078,1826.4,1826.3,0.57192241]
[1680313388623,5.35662449,1826.4,1826.3,0.57192241]
[1680313395933,5.35662449,1826.4,1826.2,1.42959927]
[1680313396139,0.86147836,1826.3,1826.2,1.42959927]
[1680313398541,5.35662449,1826.4,1826.2,1.42959927]
[1680313398845,0.94995121,1826.3,1826.2,1.42959927]
[1680313399139,0.08850026,1826.3,1826.2,1.42959927]
[1680313399338,0.94995133,1826.3,1826.2,1.42959927]
[1680313399532,0.94995133,1826.3,1826.2,1.42550572]
[1680313399731,0.08850026,1826.3,1826.2,1.42550572]
[1680313399938,5.35662449,1826.4,1826.2,1.42550572]
[1680313400441,0.86145083,1826.3,1826.2,1.42550572]
[1680313401039,0.86145083,1826.3,1826.2,1.42552099]
[1680313401241,0.86145083,1826.3,1826.2,0.85358331]
[1680313403345,0.95250345,1826.3,1826.2,0.85358331]
[1680313403750,0.86145083,1826.3,1826.2,0.85358331]
[1680313404450,0.86145083,1826.3,1826.2,1.42554046]
[1680313404651,0.86145083,1826.3,1826.2,0.85358331]
[1680313405839,1.14882449,1826.3,1826.2,0.57197081]
[1680313410749,1.14882449,1826.3,1826.1,0.57197081]
[1680313410949,4.06910317,1826.2,1826.1,0.57197081]
[1680313412355,4.06910317,1826.2,1825.9,1.14451368]
[1680313412548,4.06469738,1826.2,1826.1,0.57186676]
[1680313414658,4.12753945,1826.2,1826.1,0.57186676]
[1680313415256,4.12953945,1826.2,1826.1,0.57186676]
[1680313415960,4.12953945,1826.2,1826.0,1.14451368]
[1680313416160,1.0,1826.1,1826.0,1.14451368]
[1680313416457,1.0,1826.1,1825.9,1.14451368]
[1680313416651,1.0,1826.1,1825.9,1.67173694]
[1680313417658,1.0,1826.1,1826.0,1.14451368]
[1680313417859,1.0,1826.1,1825.9,1.14451368]
[1680313418060,5.12953945,1826.2,1825.9,1.6717427]
[1680313419259,5.12953945,1826.2,1826.0,1.14451368]
[1680313423761,1.92173945,1826.2,1826.0,1.14451368]
[1680313425966,0.92173945,1826.2,1826.0,1.14451368]
[1680313434586,0.92173945,1826.2,1826.0,1.67175976]
[1680313434782,0.92173945,1826.2,1826.1,1.14451368]
[1680313439487,0.92173945,1826.2,1826.1,7.21472098]
[1680313439785,1.49627657,1826.2,1826.1,7.74204181]
[1680313440689,0.63937919,1826.2,1826.1,10.17268391]
[1680313440880,0.002,1826.2,1826.1,9.02817023]
[1680313444195,0.57453712,1826.3,1826.1,9.02817023]
[1680313444386,0.57453712,1826.3,1826.2,1.67169368]
[1680313444692,0.57453712,1826.3,1826.2,2.14437285]
[1680313445295,0.57453712,1826.3,1826.2,1.14437285]
[1680313448392,0.57453712,1826.3,1826.2,4.35217285]
[1680313448586,0.57453712,1826.4,1826.2,4.35217285]
[1680313449200,0.57453712,1826.4,1826.3,1.0]
[1680313450401,0.57453712,1826.4,1826.2,5.35217285]
[1680313454997,0.57453712,1826.4,1826.2,1.0]
[1680313455203,0.57453712,1826.4,1826.3,0.57164944]
[1680313455598,0.57453712,1826.4,1826.2,2.14437285]
[1680313455902,0.57453712,1826.4,1826.3,0.57164505]
[1680313456291,0.57453712,1826.4,1826.2,1.0]
[1680313456497,0.57453712,1826.4,1826.3,0.57164995]
[1680313457000,0.57453712,1826.4,1826.2,1.0]
[1680313457994,0.57453712,1826.4,1826.2,2.14437285]
[1680313458501,0.57453712,1826.4,1826.2,1.0]
[1680313459509,0.57453712,1826.4,1826.3,0.85749095]
[1680313480413,0.57453712,1826.4,1826.2,1.14437285]
[1680313480610,0.57453712,1826.4,1826.2,1.67163999]
[1680313481920,0.86089612,1826.4,1826.3,0.85803535]
[1680313484718,0.86089612,1826.4,1826.2,1.14437285]
[1680313485520,0.86089612,1826.4,1826.3,0.85843159]
[1680313485910,0.86089612,1826.4,1826.2,1.14437285]
[1680313486520,0.86089612,1826.4,1826.3,1.14437285]